[Event "RUS-ch Rapid Women 2021"]
[White "Tomilova,Elena"]
[Black "Nasyrova,Ekaterina"]
[Site "Sochi"]
[Round "3.5"]
[Annotator "NA"]
[Result "1/2-1/2"]
[Date "2021.10.12"]
[WhiteElo "2256"]
[BlackElo "2091"]
[PlyCount "94"]
[TimeControl "5400+30"]

1. c4 {[%emt 1:15:40]} e6 {[%emt 1:15:41]} 2. Nf3 {[%emt 0:0:25]} d5 {[%emt 0:0:0]} 3. b3 {[%emt 0:0:23]} Nf6 {[%emt 0:0:21]} 4. Bb2 {[%emt 0:0:23]} Bd6 {[%emt 0:0:23]} 5. g3 {[%emt 0:0:28]} b6 {[%emt 0:0:28]} 6. Bg2 {[%emt 0:0:0]} Bb7 {[%emt 0:0:23]} 7. 0-0 {[%emt 0:0:27]} 0-0 {[%emt 0:0:23]} 8. d3 {[%emt 0:0:37]
} Nbd7 {[%emt 0:0:26]} 9. Nbd2 {[%emt 0:0:23]} Qe7 {[%emt 0:0:0]} 10. Qc2 {[%emt 0:0:30]} Rfd8 {[%emt 0:0:49]} 11. cxd5 {[%emt 0:1:4]} exd5 {[%emt 0:3:29]} 12. Nd4 {[%emt 0:0:32]} Bc5 {[%emt 0:0:30]} 13. N2f3 {[%emt 0:0:45]
} Rac8 {[%emt 0:0:44]} 14. a3 {[%emt 0:1:29]} a5 {[%emt 0:0:0]} 15. Nf5 {[%emt 0:0:58]} Qe8 {[%emt 0:0:26]} 16. Bh3 {[%emt 0:0:48]} Bf8 {[%emt 0:2:16]} 17. Qd2 {[%emt 0:0:53]} c5 {[%emt 0:0:47]} 18. Bxf6 {[%emt 0:1:56]
} Nxf6 {[%emt 0:0:23]} 19. Qg5 {[%emt 0:0:25]} Kh8 {[%emt 0:0:0]} 20. d4 {[%emt 0:0:56]} cxd4 {[%emt 0:0:46]} 21. N5xd4 {[%emt 0:1:3]} Rc3 {[%emt 0:0:46]} 22. Rac1 {[%emt 0:1:5]} Rxc1 {[%emt 0:0:30]} 23. Rxc1 {[%emt 0:0:22]
} Bc8 {[%emt 0:0:41]} 24. Bxc8 {[%emt 0:3:4]} Rxc8 {[%emt 0:0:0]} 25. Rxc8 {[%emt 0:0:33]} Qxc8 {[%emt 0:0:21]} 26. Ne5 {[%emt 0:0:23]
} Qe8 {[%emt 0:0:28]} 27. a4 {[%emt 0:0:48]} h6 {[%emt 0:1:47]} 28. Qf5 {[%emt 0:0:31]
} Bc5 {[%emt 0:0:40]} 29. e3 {[%emt 0:0:57]} Kg8 {[%emt 0:0:0]} 30. h4 {[%emt 0:0:47]} Ne4 {[%emt 0:1:50]} 31. Nec6 {[%emt 0:1:3]} Bxd4 {[%emt 0:1:20]} 32. Nxd4 {[%emt 0:0:22]} Nf6 {[%emt 0:0:23]} 33. Qf4 {[%emt 0:1:28]
} Qf8 {[%emt 0:1:50]} 34. Nf5 {[%emt 0:1:11]} Qd8 {[%emt 0:0:0]} 35. Qe5 {[%emt 0:0:25]} Kh7 {[%emt 0:0:52]} 36. Kg2 {[%emt 0:1:27]} Qd7 {[%emt 0:1:1]} 37. g4 {[%emt 0:0:51]} Qe6 {[%emt 0:1:32]} 38. Qxe6 {[%emt 0:0:25]
} fxe6 {[%emt 0:0:19]} 39. Nd4 {[%emt 0:0:22]} e5 {[%emt 0:0:0]} 40. Nc6 {[%emt 0:1:43]} Nxg4 {[%emt 0:0:22]} 41. Kf3 {[%emt 0:0:55]} h5 {[%emt 0:0:23]} 42. Ne7 {[%emt 0:0:35]} Nf6 {[%emt 0:0:27]} 43. Nc8 {[%emt 0:0:26]
} Nd7 {[%emt 0:0:22]} 44. Ne7 {[%emt 0:0:21]} Nf6 {[%emt 0:0:0]} 45. Nc8 {[%emt 0:0:21]} Nd7 {[%emt 0:0:21]} 46. Ne7 {[%emt 0:0:22]} Nf6 {[%emt 0:0:22]} 47. Nc8 {[%emt 0:0:21]} Nd7 {[%emt 0:0:21]} 1/2-1/2

[Event "RUS-ch Rapid Women 2021"]
[White "Yakimova,Mariya"]
[Black "Protopopova,Anastasiya"]
[Site "Sochi"]
[Round "3.6"]
[Annotator "NA"]
[Result "0-1"]
[Date "2021.10.12"]
[WhiteElo "2219"]
[BlackElo "2257"]
[PlyCount "110"]
[TimeControl "5400+30"]

1. d4 {[%emt 1:15:43]} Nf6 {[%emt 1:15:42]} 2. c4 {[%emt 0:0:22]} e6 {[%emt 0:0:0]} 3. Nf3 {[%emt 0:0:34]} b6 {[%emt 0:0:33]} 4. g3 {[%emt 0:0:49]} Ba6 {[%emt 0:0:23]} 5. Qa4 {[%emt 0:0:23]} c5 {[%emt 0:0:50]} 6. Bg2 {[%emt 0:0:0]} Bb7 {[%emt 0:0:27]} 7. 0-0 {[%emt 0:0:32]} cxd4 {[%emt 0:0:49]} 8. Nxd4 {[%emt 0:0:25]} Bxg2 {[%emt 0:0:21]} 9. Kxg2 {[%emt 0:0:21]} Be7 {[%emt 0:0:31]
} 10. Nc3 {[%emt 0:0:43]} Qc8 {[%emt 0:0:43]} 11. Rd1 {[%emt 0:0:0]} a6 {[%emt 0:0:24]} 12. f3 {[%emt 0:3:7]} 0-0 {[%emt 0:0:34]} 13. Be3 {[%emt 0:2:34]} d6 {[%emt 0:2:35]} 14. Ndb5 {[%emt 0:2:3]} Ne8 {[%emt 0:6:1]
} 15. Bf4 {[%emt 0:5:44]} e5 {[%emt 0:2:25]} 16. Be3 {[%emt 0:0:0]} Qb7 {[%emt 0:0:27]} 17. Na3 {[%emt 0:0:39]} Nc7 {[%emt 0:0:53]} 18. Qb3 {[%emt 0:0:44]} Nd7 {[%emt 0:0:32]} 19. Ne4 {[%emt 0:0:27]} Qc6 {[%emt 0:2:16]
} 20. Nc2 {[%emt 0:0:32]} a5 {[%emt 0:0:46]} 21. Rd2 {[%emt 0:0:0]} Nc5 {[%emt 0:1:4]} 22. Nxc5 {[%emt 0:0:26]} bxc5 {[%emt 0:0:52]} 23. Bf2 {[%emt 0:0:22]} Rfb8 {[%emt 0:0:33]} 24. Qc3 {[%emt 0:0:22]} Ne6 {[%emt 0:0:50]
} 25. Ne3 {[%emt 0:0:28]} Nd4 {[%emt 0:0:25]} 26. Nd5 {[%emt 0:0:0]} Bf8 {[%emt 0:0:21]} 27. e3 {[%emt 0:0:36]} Ne6 {[%emt 0:0:26]} 28. Rad1 {[%emt 0:0:22]} a4 {[%emt 0:0:27]} 29. h4 {[%emt 0:0:45]} Rb7 {[%emt 0:0:0]} 30. h5 {[%emt 0:0:27]} h6 {[%emt 0:0:20]} 31. Qc1 {[%emt 0:1:20]} Rab8 {[%emt 0:0:27]} 32. Nc3 {[%emt 0:0:38]} Ng5 {[%emt 0:0:48]} 33. Nd5 {[%emt 0:0:54]
} e4 {[%emt 0:0:34]} 34. f4 {[%emt 0:0:35]} Nf3 {[%emt 0:0:22]
} 35. Rc2 {[%emt 0:0:26]} f5 {[%emt 0:1:4]} 36. Be1 {[%emt 0:0:27]} Qe8 {[%emt 0:0:23]
} 37. Bc3 {[%emt 0:0:51]} Qxh5 {[%emt 0:0:28]} 38. Rh1 {[%emt 0:0:21]
} Qg6 {[%emt 0:0:50]} 39. Rh3 {[%emt 0:0:32]} Be7 {[%emt 0:0:0]} 40. Kf2 {[%emt 0:0:37]} Qg4 {[%emt 0:0:27]} 41. Qh1 {[%emt 0:0:27]} Qg6 {[%emt 0:0:32]} 42. Rh5 {[%emt 0:0:32]} Bd8 {[%emt 0:0:30]} 43. Qh3 {[%emt 0:0:26]
} Rf7 {[%emt 0:0:20]} 44. Rc1 {[%emt 0:0:40]} Ra8 {[%emt 0:0:0]} 45. Rc2 {[%emt 0:0:33]} Kf8 {[%emt 0:0:26]} 46. Kf1 {[%emt 0:0:23]} Ba5 {[%emt 0:0:23]} 47. Bxa5 {[%emt 0:0:35]} Rxa5 {[%emt 0:0:21]} 48. Rg2 {[%emt 0:0:21]
} Ra8 {[%emt 0:0:55]} 49. g4 {[%emt 0:0:24]} fxg4 {[%emt 0:0:0]} 50. Rxg4 {[%emt 0:0:48]} Nh2+ {[%emt 0:0:23]} 51. Qxh2 {[%emt 0:0:29]} Qxg4 {[%emt 0:0:20]} 52. Nc3 {[%emt 0:0:36]} Qf3+ {[%emt 0:0:28]} 53. Ke1 {[%emt 0:0:23]
} Qxe3+ {[%emt 0:0:21]} 54. Kd1 {[%emt 0:0:20]} Rxf4 {[%emt 0:0:0]} 55. Qe2 {[%emt 0:0:30]} Qg1+ {[%emt 0:0:34]} 0-1

[Event "RUS-ch Rapid Women 2021"]
[White "Protopopova,Anastasiya"]
[Black "Goltseva,Ekaterina"]
[Site "Sochi"]
[Round "4.1"]
[Annotator "NA"]
[Result "1-0"]
[Date "2021.10.12"]
[WhiteElo "2257"]
[BlackElo "2304"]
[PlyCount "51"]
[TimeControl "5400+30"]

1. d4 {[%emt 1:15:43]} Nf6 {[%emt 1:15:42]} 2. c4 {[%emt 0:0:22]} e6 {[%emt 0:0:0]} 3. Nc3 {[%emt 0:0:22]} Bb4 {[%emt 0:0:22]} 4. f3 {[%emt 0:0:20]} d5 {[%emt 0:0:50]} 5. a3 {[%emt 0:0:23]} Bxc3+ {[%emt 0:0:23]} 6. bxc3 {[%emt 0:0:21]
} c5 {[%emt 0:0:28]} 7. cxd5 {[%emt 0:0:24]} exd5 {[%emt 0:0:0]} 8. e3 {[%emt 0:0:24]} Qc7 {[%emt 0:0:23]} 9. Bd3 {[%emt 0:0:20]} cxd4 {[%emt 0:3:26]
} 10. cxd4 {[%emt 0:0:23]} Qc3+ {[%emt 0:0:58]} 11. Qd2 {[%emt 0:0:32]
} Qxa1 {[%emt 0:0:46]} 12. Ne2 {[%emt 0:0:23]} Nc6 {[%emt 0:0:0]} 13. 0-0 {[%emt 0:4:44]} 0-0 {[%emt 0:3:28]} 14. Bb2 {[%emt 0:2:12]} Qxf1+ {[%emt 0:0:34]} 15. Kxf1 {[%emt 0:0:21]} Re8 {[%emt 0:1:19]} 16. Ng3 {[%emt 0:1:14]
} Be6 {[%emt 0:2:24]} 17. e4 {[%emt 0:2:54]} Nd7 {[%emt 0:0:0]} 18. Nh5 {[%emt 0:2:32]} h6 {[%emt 0:1:25]} 19. Qf4 {[%emt 0:1:27]} Kh8 {[%emt 0:1:2]} 20. exd5 {[%emt 0:0:39]} g5 {[%emt 0:0:33]} 21. Qd6 {[%emt 0:1:14]
} Rad8 {[%emt 0:0:28]} 22. dxe6 {[%emt 0:0:26]} Nf6 {[%emt 0:0:0]} 23. Nxf6 {[%emt 0:2:48]} Rxd6 {[%emt 0:0:23]} 24. Nxe8 {[%emt 0:0:0]} Rxe6 {[%emt 0:0:40]} 25. d5+ {[%emt 0:0:27]} Re5 {[%emt 0:0:33]} 26. dxc6 {[%emt 0:0:23]} 1-0

[Event "RUS-ch Rapid Women 2021"]
[White "Shafigullina,Zarina"]
[Black "Pogorelskikh,Sofia"]
[Site "Sochi"]
[Round "4.2"]
[Annotator "NA"]
[Result "1-0"]
[Date "2021.10.12"]
[WhiteElo "2204"]
[BlackElo "2051"]
[PlyCount "117"]
[TimeControl "5400+30"]

1. d4 {[%emt 1:15:41]} Nf6 {[%emt 1:15:41]} 2. Nf3 {[%emt 0:0:21]} d5 {[%emt 0:0:23]
} 3. Bf4 {[%emt 0:0:25]} e6 {[%emt 0:1:30]} 4. e3 {[%emt 0:0:0]} Be7 {[%emt 0:1:0]} 5. h3 {[%emt 0:0:29]} b6 {[%emt 0:0:28]} 6. Nbd2 {[%emt 0:0:27]
} Bb7 {[%emt 0:0:30]} 7. Bd3 {[%emt 0:0:26]} Nbd7 {[%emt 0:0:0]} 8. 0-0 {[%emt 0:0:29]} 0-0 {[%emt 0:0:28]} 9. c3 {[%emt 0:0:39]} Ne4 {[%emt 0:2:3]
} 10. Qc2 {[%emt 0:1:45]} f5 {[%emt 0:1:26]} 11. Rfe1 {[%emt 0:0:0]} Bf6 {[%emt 0:1:5]} 12. Nf1 {[%emt 0:0:41]} Rc8 {[%emt 0:1:45]} 13. N3h2 {[%emt 0:0:30]} e5 {[%emt 0:1:11]} 14. dxe5 {[%emt 0:0:22]} Nxe5 {[%emt 0:0:24]
} 15. Be2 {[%emt 0:0:40]} Qd7 {[%emt 0:1:8]} 16. Rad1 {[%emt 0:0:32]
} Qe6 {[%emt 0:1:10]} 17. Ng3 {[%emt 0:1:33]} g5 {[%emt 0:0:0]} 18. Nxe4 {[%emt 0:1:28]} dxe4 {[%emt 0:0:24]} 19. Bxe5 {[%emt 0:0:57]} Bxe5 {[%emt 0:0:26]} 20. Qa4 {[%emt 0:0:53]} Kh8 {[%emt 0:2:8]} 21. Bc4 {[%emt 0:2:14]
} Qc6 {[%emt 0:1:23]} 22. Qb3 {[%emt 0:0:47]} Rcd8 {[%emt 0:0:0]} 23. Be6 {[%emt 0:0:27]} f4 {[%emt 0:1:54]} 24. Ng4 {[%emt 0:4:11]} Bg7 {[%emt 0:0:22]} 25. Qc4 {[%emt 0:2:34]} Qxc4 {[%emt 0:1:10]} 26. Bxc4 {[%emt 0:0:21]
} h5 {[%emt 0:0:37]} 27. Nh2 {[%emt 0:0:21]} Be5 {[%emt 0:0:0]} 28. Nf1 {[%emt 0:0:29]} Kg7 {[%emt 0:0:27]} 29. Nd2 {[%emt 0:1:50]} Rd6 {[%emt 0:1:3]} 30. Nb3 {[%emt 0:0:31]} fxe3 {[%emt 0:0:43]} 31. fxe3 {[%emt 0:0:27]
} Rxd1 {[%emt 0:0:54]} 32. Rxd1 {[%emt 0:0:21]} Bg3 {[%emt 0:0:0]} 33. Rd2 {[%emt 0:0:44]} Kg6 {[%emt 0:0:22]} 34. Nc1 {[%emt 0:1:38]} a5 {[%emt 0:0:29]} 35. Nb3 {[%emt 0:0:27]} a4 {[%emt 0:0:27]} 36. Nd4 {[%emt 0:0:23]
} Rd8 {[%emt 0:0:24]} 37. Nf3 {[%emt 0:0:34]} Rxd2 {[%emt 0:0:0]} 38. Nxd2 {[%emt 0:0:20]} Be1 {[%emt 0:0:22]} 39. Nb1 {[%emt 0:0:27]} Kf5 {[%emt 0:0:28]} 40. Bb5 {[%emt 0:0:51]} Bd5 {[%emt 0:0:32]} 41. c4 {[%emt 0:0:27]
} Be6 {[%emt 0:0:24]} 42. Kf1 {[%emt 0:0:24]} Bb4 {[%emt 0:0:0]} 43. Kf2 {[%emt 0:0:33]} Ke5 {[%emt 0:0:40]} 44. Ke2 {[%emt 0:0:37]} c6 {[%emt 0:0:32]} 45. Bxc6 {[%emt 0:0:32]} Bxc4+ {[%emt 0:0:23]} 46. Kd1 {[%emt 0:0:22]
} Bxa2 {[%emt 0:0:36]} 47. Nd2 {[%emt 0:0:23]} a3 {[%emt 0:0:0]} 48. bxa3 {[%emt 0:0:25]} Bxa3 {[%emt 0:0:22]} 49. Nxe4 {[%emt 0:0:24]} Bb3+ {[%emt 0:0:31]} 50. Ke2 {[%emt 0:0:24]} g4 {[%emt 0:0:26]} 51. hxg4 {[%emt 0:0:49]
} hxg4 {[%emt 0:0:21]} 52. Nf2 {[%emt 0:0:21]} Bc4+ {[%emt 0:0:0]} 53. Kd2 {[%emt 0:0:45]} Bb4+ {[%emt 0:0:22]} 54. Kc2 {[%emt 0:0:21]} Be6 {[%emt 0:0:31]} 55. Nd3+ {[%emt 0:0:24]} Kd6 {[%emt 0:0:24]} 56. Nxb4 {[%emt 0:0:24]
} Kc5 {[%emt 0:0:23]} 57. Kc3 {[%emt 0:0:20]} g3 {[%emt 0:0:0]} 58. Bf3 {[%emt 0:0:25]} b5 {[%emt 0:0:25]} 59. Nd3+ {[%emt 0:0:24]} 1-0

[Event "RUS-ch Rapid Women 2021"]
[White "Gvanceladze,Anna"]
[Black "Kovanova,Baira"]
[Site "Sochi"]
[Round "4.3"]
[Annotator "NA"]
[Result "1-0"]
[Date "2021.10.12"]
[WhiteElo "2196"]
[BlackElo "2331"]
[PlyCount "57"]
[TimeControl "5400+30"]

1. d4 {[%emt 1:15:41]} Nf6 {[%emt 1:15:41]} 2. Nf3 {[%emt 0:0:22]} e6 {[%emt 0:0:21]
} 3. c4 {[%emt 0:0:22]} b6 {[%emt 0:0:23]} 4. g3 {[%emt 0:0:0]} Ba6 {[%emt 0:0:22]} 5. b3 {[%emt 0:0:22]} Bb4+ $11 {[%emt 0:0:37]} 6. Bd2 {[%emt 0:0:23]} Be7 {[%emt 0:0:21]} 7. Bg2 {[%emt 0:0:23]} d5 {[%emt 0:0:0]} 8. Nc3 {[%emt 0:0:58]} 0-0 {[%emt 0:0:38]} 9. 0-0 {[%emt 0:0:34]} Nbd7 {[%emt 0:0:49]} 10. Bf4 {[%emt 0:1:42]} Rc8 {[%emt 0:1:11]} 11. Ne5 {[%emt 0:2:15]
} c6 {[%emt 0:0:25]} 12. Rc1 {[%emt 0:1:4]} Nxe5 {[%emt 0:0:0]} 13. dxe5 {[%emt 0:0:42]} Nd7 {[%emt 0:1:3]} 14. cxd5 {[%emt 0:0:46]} cxd5 {[%emt 0:0:27]} 15. h4 {[%emt 0:0:35]} Rc6 {[%emt 0:3:1]} 16. Nxd5 {[%emt 0:1:13]
} Rxc1 {[%emt 0:0:31]} 17. Nxe7+ {[%emt 0:0:23]} Qxe7 {[%emt 0:0:0]} 18. Qxc1 {[%emt 0:1:6]} Bxe2 {[%emt 0:0:23]} 19. Re1 {[%emt 0:0:19]
} Bh5 {[%emt 0:1:6]} 20. Qc7 {[%emt 0:0:45]} Qd8 {[%emt 0:0:41]} 21. Qxa7 {[%emt 0:0:43]
} Nc5 {[%emt 0:0:23]} 22. Bg5 {[%emt 0:0:52]} Qc8 {[%emt 0:0:0]} 23. Rc1 {[%emt 0:1:17]} Qe8 {[%emt 0:1:2]} 24. Be7 {[%emt 0:1:56]} Nd3 {[%emt 0:0:25]} 25. Rc7 {[%emt 0:1:0]} Qb5 {[%emt 0:1:16]} 26. Bxf8 {[%emt 0:0:38]
} Qxe5 {[%emt 0:1:2]} 27. Bc5 {[%emt 0:1:11]} Qe1+ {[%emt 0:0:0]} 28. Kh2 {[%emt 0:0:24]} h6 {[%emt 0:0:22]} 29. Qa8+ {[%emt 0:0:41]} 1-0

[Event "RUS-ch Rapid Women 2021"]
[White "Kovalevskaya,Ekaterina"]
[Black "Shubenkova,Veronika"]
[Site "Sochi"]
[Round "4.4"]
[Annotator "NA"]
[Result "1/2-1/2"]
[Date "2021.10.12"]
[WhiteElo "2364"]
[BlackElo "1762"]
[PlyCount "119"]
[TimeControl "5400+30"]

1. Nf3 {[%emt 1:15:42]} d5 {[%emt 1:15:41]} 2. g3 {[%emt 0:0:22]} Nf6 {[%emt 0:0:22]
} 3. Bg2 {[%emt 0:0:21]} g6 {[%emt 0:0:22]} 4. 0-0 {[%emt 0:0:0]} Bg7 {[%emt 0:0:21]} 5. d4 {[%emt 0:0:37]} 0-0 {[%emt 0:0:21]} 6. Bf4 {[%emt 0:0:23]
} Nbd7 {[%emt 0:0:33]} 7. Qc1 {[%emt 0:0:29]} c6 {[%emt 0:0:0]} 8. Bh6 {[%emt 0:0:35]} Re8 {[%emt 0:0:55]} 9. Bxg7 {[%emt 0:0:24]} Kxg7 {[%emt 0:0:22]} 10. c4 {[%emt 0:0:47]} e5 {[%emt 0:1:15]} 11. cxd5 {[%emt 0:0:0]} cxd5 {[%emt 0:0:55]} 12. dxe5 {[%emt 0:0:36]} Nxe5 {[%emt 0:0:23]} 13. Nd4 {[%emt 0:1:51]} Qb6 {[%emt 0:1:36]} 14. Rd1 {[%emt 0:1:12]} Nc6 {[%emt 0:0:48]
} 15. e3 {[%emt 0:2:53]} Bg4 {[%emt 0:0:40]} 16. Rd3 {[%emt 0:0:0]} Rac8 {[%emt 0:2:59]} 17. Nxc6 {[%emt 0:0:48]} bxc6 {[%emt 0:2:2]} 18. Nc3 {[%emt 0:0:24]} Qa6 {[%emt 0:1:6]} 19. Rd4 {[%emt 0:0:36]} Bf5 {[%emt 0:2:32]
} 20. b3 {[%emt 0:2:11]} Re7 {[%emt 0:2:46]} 21. Qb2 {[%emt 0:0:0]} Kg8 {[%emt 0:1:47]} 22. Rc1 {[%emt 0:0:26]} Nd7 {[%emt 0:1:29]} 23. e4 {[%emt 0:3:35]} dxe4 {[%emt 0:0:41]} 24. Nxe4 {[%emt 0:0:23]} Bxe4 {[%emt 0:0:42]
} 25. Rxe4 {[%emt 0:0:20]} Rxe4 {[%emt 0:0:44]} 26. Bxe4 {[%emt 0:0:24]
} c5 {[%emt 0:0:22]} 27. Qd2 {[%emt 0:1:42]} Nf6 {[%emt 0:0:0]} 28. Bf3 {[%emt 0:0:30]} Qb6 {[%emt 0:0:37]} 29. Qc3 {[%emt 0:0:33]} Qd6 {[%emt 0:0:44]} 30. Rd1 {[%emt 0:0:27]} Qb6 {[%emt 0:0:31]} 31. Kg2 {[%emt 0:0:33]
} Qe6 {[%emt 0:0:38]} 32. Qc4 {[%emt 0:0:36]} Qxc4 {[%emt 0:0:0]} 33. bxc4 {[%emt 0:0:21]} Rb8 {[%emt 0:0:21]} 34. Rd6 {[%emt 0:0:28]} Kg7 {[%emt 0:0:21]} 35. Ra6 {[%emt 0:0:44]} Rb4 {[%emt 0:0:23]} 36. Bd5 {[%emt 0:0:59]
} Nxd5 {[%emt 0:0:34]} 37. cxd5 {[%emt 0:0:23]} Rd4 {[%emt 0:0:0]} 38. d6 {[%emt 0:0:33]} c4 {[%emt 0:0:20]} 39. Kf3 {[%emt 0:0:52]} c3 {[%emt 0:0:23]} 40. Rc6 {[%emt 0:0:23]} c2 {[%emt 0:0:22]} 41. Rxc2 {[%emt 0:0:25]
} Rxd6 {[%emt 0:0:21]} 42. Rc4 {[%emt 0:0:26]} Ra6 {[%emt 0:0:0]} 43. a4 {[%emt 0:0:22]} Kf6 {[%emt 0:0:46]} 44. Ke4 {[%emt 0:0:24]} Rd6 {[%emt 0:0:49]} 45. Rc5 {[%emt 0:0:37]} Ke6 {[%emt 0:0:48]} 46. Ra5 {[%emt 0:0:29]
} a6 {[%emt 0:0:25]} 47. f4 {[%emt 0:0:30]} f5+ {[%emt 0:0:32]
} 48. Ke3 {[%emt 0:0:22]} Ke7 {[%emt 0:0:42]} 49. Rc5 {[%emt 0:0:36]} Kd7 {[%emt 0:0:34]
} 50. h3 {[%emt 0:0:47]} h5 {[%emt 0:0:21]} 51. Rc4 {[%emt 0:0:0]} Ke6 {[%emt 0:0:33]} 52. Rc7 {[%emt 0:0:27]} Rb6 {[%emt 0:0:30]} 53. Kd4 {[%emt 0:0:39]} Rb4+ {[%emt 0:0:24]} 54. Rc4 {[%emt 0:0:22]} Rb3 {[%emt 0:0:24]
} 55. Rc6+ {[%emt 0:0:22]} Kf7 {[%emt 0:0:25]} 56. Rxa6 {[%emt 0:0:29]
} Rxg3 {[%emt 0:0:22]} 57. Ra7+ {[%emt 0:0:44]} Kf6 {[%emt 0:0:0]} 58. Ra6+ {[%emt 0:0:22]} Kf7 {[%emt 0:0:22]} 59. Ra7+ {[%emt 0:0:25]
} Kf6 {[%emt 0:0:21]} 60. Ra6+ {[%emt 0:0:26]} 1/2-1/2

[Event "RUS-ch Rapid Women 2021"]
[White "Borisova,Ekaterina"]
[Black "Chernyak,Viktoria"]
[Site "Sochi"]
[Round "4.5"]
[Annotator "NA"]
[Result "1-0"]
[Date "2021.10.12"]
[WhiteElo "2250"]
[BlackElo "2285"]
[PlyCount "110"]
[TimeControl "5400+30"]

1. Nf3 {[%emt 1:15:41]} Nf6 {[%emt 1:15:49]} 2. c4 {[%emt 0:0:23]} e6 {[%emt 0:0:21]
} 3. d4 {[%emt 0:0:27]} d5 {[%emt 0:0:21]} 4. g3 {[%emt 0:0:0]} a6 {[%emt 0:0:25]} 5. Bg2 {[%emt 0:0:53]} dxc4 {[%emt 0:0:23]} 6. Ne5 {[%emt 0:0:30]
} c5 {[%emt 0:0:45]} 7. dxc5 {[%emt 0:1:25]} Qxd1+ {[%emt 0:0:0]} 8. Kxd1 {[%emt 0:0:23]} Bxc5 {[%emt 0:0:27]} 9. e3 {[%emt 0:0:44]} 0-0 {[%emt 0:1:28]} 10. Ke2 {[%emt 0:0:23]} Ra7 {[%emt 0:1:27]} 11. Nxc4 {[%emt 0:1:4]
} b5 {[%emt 0:0:27]} 12. Na5 {[%emt 0:1:47]} e5 {[%emt 0:1:42]
} 13. Nd2 {[%emt 0:2:4]} Bg4+ {[%emt 0:0:46]} 14. f3 {[%emt 0:0:22]} Be6 {[%emt 0:0:30]
} 15. Ndb3 {[%emt 0:0:27]} Bb6 {[%emt 0:0:57]} 16. e4 {[%emt 0:0:0]} Rc7 {[%emt 0:2:17]} 17. Rd1 {[%emt 0:1:35]} Rc2+ {[%emt 0:1:45]} 18. Rd2 {[%emt 0:0:27]} Rfc8 {[%emt 0:0:22]} 19. Kd1 {[%emt 0:1:12]} R2c7 {[%emt 0:1:31]
} 20. Rd6 {[%emt 0:0:43]} Nbd7 {[%emt 0:1:21]} 21. Bg5 {[%emt 0:1:13]
} h6 {[%emt 0:0:44]} 22. Bd2 {[%emt 0:1:15]} Ne8 {[%emt 0:0:0]} 23. Rd3 {[%emt 0:0:23]} h5 {[%emt 0:1:43]} 24. Rc1 {[%emt 0:1:0]} g6 {[%emt 0:0:23]
} 25. Rxc7 {[%emt 0:0:27]} Rxc7 {[%emt 0:0:25]} 26. Bb4 {[%emt 0:2:52]
} f6 {[%emt 0:0:45]} 27. Kd2 {[%emt 0:1:17]} Kf7 {[%emt 0:0:0]} 28. f4 {[%emt 0:1:3]} Kg7 {[%emt 0:1:9]} 29. Bd6 {[%emt 0:0:39]} Rc8 {[%emt 0:0:30]} 30. Bb4 {[%emt 0:0:48]} Rc7 {[%emt 0:0:26]} 31. Bd6 {[%emt 0:1:30]
} Rc8 {[%emt 0:0:53]} 32. Bb4 {[%emt 0:0:22]} Rc7 {[%emt 0:0:0]} 33. Bf3 {[%emt 0:0:56]} Bg1 {[%emt 0:0:40]} 34. Be2 {[%emt 0:0:52]} Bxh2 {[%emt 0:0:50]} 35. Bc3 {[%emt 0:0:21]} exf4 {[%emt 0:0:28]} 36. gxf4 {[%emt 0:0:27]
} Bxf4+ {[%emt 0:0:21]} 37. Ke1 {[%emt 0:0:20]} h4 {[%emt 0:0:0]} 38. Bf1 {[%emt 0:0:24]} g5 {[%emt 0:0:53]} 39. Nd4 {[%emt 0:0:22]} Bg4 {[%emt 0:1:9]} 40. Ndc6 {[%emt 0:0:52]} Nc5 {[%emt 0:0:36]} 41. Rd8 {[%emt 0:0:23]
} Bg3+ {[%emt 0:0:22]} 42. Kd2 {[%emt 0:0:25]} Nxe4+ {[%emt 0:0:0]} 43. Kc2 {[%emt 0:0:26]} Nxc3 {[%emt 0:0:37]} 44. bxc3 {[%emt 0:0:21]
} Bf5+ {[%emt 0:0:33]} 45. Kb2 {[%emt 0:0:23]} Nd6 {[%emt 0:0:27]} 46. Nd4 {[%emt 0:0:26]
} Kg6 {[%emt 0:0:43]} 47. Rg8+ {[%emt 0:0:24]} Kf7 {[%emt 0:0:0]} 48. Rh8 {[%emt 0:0:29]} Be5 {[%emt 0:0:33]} 49. Nxf5 {[%emt 0:0:27]} Nxf5 {[%emt 0:0:21]} 50. Bh3 {[%emt 0:0:47]} Bxc3+ {[%emt 0:0:28]} 51. Kb1 {[%emt 0:0:22]
} Ng7 {[%emt 0:0:42]} 52. Nb3 {[%emt 0:0:21]} f5 {[%emt 0:0:0]} 53. Bg2 {[%emt 0:0:26]} Kg6 {[%emt 0:0:28]} 54. Kc2 {[%emt 0:0:25]} Bf6+ {[%emt 0:0:25]} 55. Kd3 {[%emt 0:0:21]} g4 {[%emt 0:0:29]} 1-0